[Event "*** Titled Tuesday Blitz"]
[Site "Chess.com"]
[Date "2018.06.05"]
[Round "8"]
[White "Supernotar"]
[Black "VerdeNotte"]
[Result "1-0"]
[WhiteElo "2445"]
[BlackElo "2604"]
[TimeControl "180+2"]
[EndTime "14:56:03 PDT"]
[Termination "Supernotar won by resignation"]

1. d4 {[%clk 0:02:58.3]} 1... d5 {[%clk 0:02:57.9]} 2. c4 {[%clk 0:02:59.4]}
2... e6 {[%clk 0:02:59]} 3. e3 {[%clk 0:03:00.3]} 3... Nf6 {[%clk 0:02:57.9]} 4.
Nf3 {[%clk 0:03:01.5]} 4... Bb4+ {[%clk 0:02:52.1]} 5. Nbd2 {[%clk 0:03:02.1]}
5... O-O {[%clk 0:02:52.5]} 6. Bd3 {[%clk 0:03:02.3]} 6... dxc4 {[%clk
0:02:52.3]} 7. Bxc4 {[%clk 0:03:02.9]} 7... c5 {[%clk 0:02:53.6]} 8. O-O {[%clk
0:03:03.7]} 8... cxd4 {[%clk 0:02:54.5]} 9. Nxd4 {[%clk 0:03:04.3]} 9... b6
{[%clk 0:02:51]} 10. Qf3 {[%clk 0:02:53]} 10... Qc7 {[%clk 0:02:33.2]} 11. Qxa8
{[%clk 0:02:39.8]} 11... Bb7 {[%clk 0:02:33.9]} 12. Qxa7 {[%clk 0:02:39.5]}
12... Bxd2 {[%clk 0:02:09.9]} 13. Bxd2 {[%clk 0:02:37.4]} 13... Ng4 {[%clk
0:02:10.6]} 14. f4 {[%clk 0:02:32]} 14... Nc6 {[%clk 0:02:06.7]} 15. Qa4 {[%clk
0:01:51.2]} 15... Ra8 {[%clk 0:02:01]} 16. Qc2 {[%clk 0:01:23.1]} 16... Nxd4
{[%clk 0:01:55]} 17. exd4 {[%clk 0:01:24.2]} 17... Qc6 {[%clk 0:01:56.3]} 18. d5
{[%clk 0:00:51.3]} 18... Qc5+ {[%clk 0:01:56]} 19. Kh1 {[%clk 0:00:52.1]} 19...
Bxd5 {[%clk 0:01:51.5]} 20. Bb3 {[%clk 0:00:45]} 20... Nf2+ {[%clk 0:01:36.5]}
21. Rxf2 {[%clk 0:00:45]} 21... Qxf2 {[%clk 0:01:38.4]} 22. Bxd5 {[%clk
0:00:44.3]} 22... exd5 {[%clk 0:01:40.3]} 23. Qd3 {[%clk 0:00:42]} 23... Qc5
{[%clk 0:01:31.1]} 24. Bc3 {[%clk 0:00:40.2]} 24... Qc6 {[%clk 0:01:26]} 25. Qd4
{[%clk 0:00:40.4]} 25... f6 {[%clk 0:01:25.4]} 26. a3 {[%clk 0:00:36.9]} 26...
Ra4 {[%clk 0:01:24.8]} 27. Qd2 {[%clk 0:00:35.2]} 27... Rc4 {[%clk 0:01:04.7]}
28. Rd1 {[%clk 0:00:35.2]} 28... Rc5 {[%clk 0:01:05.5]} 29. h3 {[%clk
0:00:30.5]} 29... h6 {[%clk 0:01:00.8]} 30. Bb4 {[%clk 0:00:28.7]} 30... Rb5
{[%clk 0:00:57.7]} 31. a4 {[%clk 0:00:25]} 31... Rxb4 {[%clk 0:00:57.7]} 32.
Qxb4 {[%clk 0:00:25.4]} 32... Qc2 {[%clk 0:00:55]} 33. Rxd5 {[%clk 0:00:20.4]}
33... Qe2 {[%clk 0:00:54.2]} 34. Qd4 {[%clk 0:00:19.2]} 34... Qe6 {[%clk
0:00:37.5]} 35. Rd8+ {[%clk 0:00:19.7]} 35... Kh7 {[%clk 0:00:38.6]} 36. Qd3+
{[%clk 0:00:20.4]} 36... f5 {[%clk 0:00:39.8]} 37. Kh2 {[%clk 0:00:21.5]} 37...
h5 {[%clk 0:00:37.4]} 38. Rd5 {[%clk 0:00:21.6]} 38... g6 {[%clk 0:00:38.4]} 39.
Re5 {[%clk 0:00:22.3]} 39... Qc6 {[%clk 0:00:34.9]} 40. Qd8 {[%clk 0:00:22]} 1-0

[Event "*** Titled Tuesday Blitz"]
[Site "Chess.com"]
[Date "2018.06.05"]
[Round "8"]
[White "Jbd735"]
[Black "GoingKronos"]
[Result "0-1"]
[WhiteElo "2366"]
[BlackElo "2341"]
[TimeControl "180+2"]
[EndTime "14:56:04 PDT"]
[Termination "GoingKronos won on time"]

1. e4 {[%clk 0:03:01.9]} 1... e6 {[%clk 0:03:00.8]} 2. d4 {[%clk 0:03:02.1]}
2... d5 {[%clk 0:03:02.4]} 3. Nc3 {[%clk 0:03:03.3]} 3... Nf6 {[%clk 0:03:02.8]}
4. e5 {[%clk 0:03:03.7]} 4... Nfd7 {[%clk 0:03:03.6]} 5. f4 {[%clk 0:03:04.9]}
5... c5 {[%clk 0:03:04.8]} 6. Nf3 {[%clk 0:03:05.8]} 6... Nc6 {[%clk 0:03:06.1]}
7. Be3 {[%clk 0:03:06.8]} 7... cxd4 {[%clk 0:03:07.3]} 8. Nxd4 {[%clk
0:03:06.8]} 8... Bc5 {[%clk 0:03:08.4]} 9. Qd2 {[%clk 0:03:04.7]} 9... O-O
{[%clk 0:03:09.3]} 10. O-O-O {[%clk 0:03:04.3]} 10... a6 {[%clk 0:03:10.2]} 11.
Kb1 {[%clk 0:02:58]} 11... Nxd4 {[%clk 0:03:09.9]} 12. Bxd4 {[%clk 0:02:58.3]}
12... b5 {[%clk 0:03:10.9]} 13. Qe3 {[%clk 0:02:49.8]} 13... Qc7 {[%clk
0:03:05.2]} 14. Bd3 {[%clk 0:02:43.2]} 14... b4 {[%clk 0:02:59.9]} 15. Ne2
{[%clk 0:02:25.4]} 15... a5 {[%clk 0:02:55.2]} 16. Qh3 {[%clk 0:02:09]} 16... g6
{[%clk 0:02:56.2]} 17. Qe3 {[%clk 0:02:07.8]} 17... Ba6 {[%clk 0:02:55.9]} 18.
h4 {[%clk 0:02:06.9]} 18... Bxd3 {[%clk 0:02:38.7]} 19. cxd3 {[%clk 0:02:03.6]}
19... Rfc8 {[%clk 0:02:38.8]} 20. h5 {[%clk 0:01:58.7]} 20... Bxd4 {[%clk
0:02:27.9]} 21. Nxd4 {[%clk 0:01:58.4]} 21... Qb6 {[%clk 0:02:16.3]} 22. hxg6
{[%clk 0:01:30.3]} 22... fxg6 {[%clk 0:02:15.9]} 23. f5 {[%clk 0:01:11.5]} 23...
exf5 {[%clk 0:02:08.6]} 24. Qh6 {[%clk 0:00:37.3]} 24... Nf8 {[%clk 0:02:06.6]}
25. Nxf5 {[%clk 0:00:36.8]} 25... Qc7 {[%clk 0:01:57.1]} 26. Ne3 {[%clk
0:00:23.9]} 26... Qxe5 {[%clk 0:01:50.8]} 27. Rdf1 {[%clk 0:00:15.5]} 27... Qg7
{[%clk 0:01:45.5]} 28. Qh3 {[%clk 0:00:11.5]} 28... Rc6 {[%clk 0:00:47.9]} 29.
Nxd5 {[%clk 0:00:09.6]} 29... Rac8 {[%clk 0:00:46]} 30. Nf6+ {[%clk 0:00:04.1]}
30... Kh8 {[%clk 0:00:38.2]} 31. Rf2 {[%clk 0:00:03.4]} 31... a4 {[%clk
0:00:30.1]} 32. Ne4 {[%clk 0:00:03.7]} 32... a3 {[%clk 0:00:28.5]} 33. Ng5
{[%clk 0:00:03.6]} 33... R6c7 {[%clk 0:00:21.5]} 34. Nf7+ {[%clk 0:00:02.1]}
34... Rxf7 {[%clk 0:00:21.9]} 0-1

[Event "*** Titled Tuesday Blitz"]
[Site "Chess.com"]
[Date "2018.06.05"]
[Round "8"]
[White "Rakhmanov_Aleksandr"]
[Black "Micki-taryan"]
[Result "0-1"]
[WhiteElo "2714"]
[BlackElo "2833"]
[TimeControl "180+2"]
[EndTime "14:56:08 PDT"]
[Termination "Micki-taryan won by checkmate"]

1. c4 {[%clk 0:03:01.9]} 1... Nf6 {[%clk 0:02:59.7]} 2. Nc3 {[%clk 0:03:02.4]}
2... e5 {[%clk 0:03:01]} 3. Nf3 {[%clk 0:03:03.2]} 3... Nc6 {[%clk 0:03:02.9]}
4. e3 {[%clk 0:03:04.6]} 4... Bb4 {[%clk 0:03:03]} 5. Nd5 {[%clk 0:03:05.3]}
5... Be7 {[%clk 0:03:02.3]} 6. Qc2 {[%clk 0:02:56.2]} 6... O-O {[%clk
0:03:02.4]} 7. a3 {[%clk 0:02:43.2]} 7... d6 {[%clk 0:03:02.4]} 8. Bd3 {[%clk
0:02:43.4]} 8... g6 {[%clk 0:03:03]} 9. h4 {[%clk 0:02:43.4]} 9... Ng4 {[%clk
0:02:30.3]} 10. b4 {[%clk 0:02:36.4]} 10... f5 {[%clk 0:02:29.1]} 11. b5 {[%clk
0:02:36.7]} 11... Nb8 {[%clk 0:02:27.2]} 12. Nh2 {[%clk 0:02:29.6]} 12... Nxh2
{[%clk 0:02:10.7]} 13. Nxe7+ {[%clk 0:02:25.5]} 13... Qxe7 {[%clk 0:02:11.4]}
14. Rxh2 {[%clk 0:02:27.1]} 14... Be6 {[%clk 0:02:11.9]} 15. Bb2 {[%clk
0:02:27.7]} 15... Nd7 {[%clk 0:02:12.8]} 16. Be2 {[%clk 0:02:27]} 16... f4
{[%clk 0:02:08.8]} 17. Bd3 {[%clk 0:02:16.5]} 17... Bf5 {[%clk 0:02:06]} 18.
Bxf5 {[%clk 0:02:07.7]} 18... Rxf5 {[%clk 0:02:07.9]} 19. O-O-O {[%clk 0:02:01]}
19... a6 {[%clk 0:02:07.2]} 20. g4 {[%clk 0:01:56.3]} 20... fxg3 {[%clk
0:02:05.5]} 21. fxg3 {[%clk 0:01:57.7]} 21... axb5 {[%clk 0:02:07.1]} 22. cxb5
{[%clk 0:01:58.6]} 22... Nc5 {[%clk 0:02:08.7]} 23. g4 {[%clk 0:01:58.3]} 23...
Rf7 {[%clk 0:02:01]} 24. g5 {[%clk 0:01:42.2]} 24... Qe6 {[%clk 0:02:01.3]} 25.
h5 {[%clk 0:01:41]} 25... gxh5 {[%clk 0:01:21]} 26. Rxh5 {[%clk 0:01:33.8]}
26... Qg6 {[%clk 0:01:21.5]} 27. Qxg6+ {[%clk 0:01:25.6]} 27... hxg6 {[%clk
0:01:23.4]} 28. Rh6 {[%clk 0:01:27]} 28... Rf2 {[%clk 0:01:21.8]} 29. Rdh1
{[%clk 0:01:23.3]} 29... Kf7 {[%clk 0:01:22.8]} 30. Rh7+ {[%clk 0:01:19]} 30...
Ke6 {[%clk 0:01:24.1]} 31. Rxc7 {[%clk 0:01:15.5]} 31... Nb3+ {[%clk 0:01:20.1]}
32. Kb1 {[%clk 0:01:03.8]} 32... Nxd2+ {[%clk 0:01:22]} 33. Ka2 {[%clk
0:01:03.6]} 33... Ne4 {[%clk 0:01:17.7]} 34. Rh6 {[%clk 0:00:55.3]} 34... Kd5
{[%clk 0:01:03.4]} 35. Rxg6 {[%clk 0:00:49.6]} 35... b6 {[%clk 0:01:03.6]} 36.
Rc1 {[%clk 0:00:43.6]} 36... Ra5 {[%clk 0:00:57.5]} 37. Rd1+ {[%clk 0:00:44.1]}
37... Kc4 {[%clk 0:00:56.5]} 38. Rc1+ {[%clk 0:00:37.6]} 38... Kd5 {[%clk
0:00:57.7]} 39. Rd1+ {[%clk 0:00:37.8]} 39... Kc4 {[%clk 0:00:59.1]} 40. Rc1+
{[%clk 0:00:39.2]} 40... Kd3 {[%clk 0:00:57.5]} 41. Rd1+ {[%clk 0:00:25]} 41...
Ke2 {[%clk 0:00:58.5]} 42. Rd5 {[%clk 0:00:25.3]} 42... Kxe3 {[%clk 0:00:57.3]}
43. Kb3 {[%clk 0:00:25.4]} 43... Nc5+ {[%clk 0:00:58.5]} 44. Ka2 {[%clk
0:00:18.7]} 44... Rxb5 {[%clk 0:00:58.5]} 45. Rgxd6 {[%clk 0:00:15.7]} 45...
Rbxb2+ {[%clk 0:00:59]} 46. Ka1 {[%clk 0:00:17.2]} 46... Nb3# {[%clk 0:01:00.7]}
0-1

[Event "*** Titled Tuesday Blitz"]
[Site "Chess.com"]
[Date "2018.06.05"]
[Round "8"]
[White "Angulo07"]
[Black "51616516516"]
[Result "1-0"]
[WhiteElo "2420"]
[BlackElo "2292"]
[TimeControl "180+2"]
[EndTime "14:56:14 PDT"]
[Termination "Angulo07 won on time"]

1. d4 {[%clk 0:02:53.1]} 1... Nf6 {[%clk 0:03:00.3]} 2. Bg5 {[%clk 0:02:52.7]}
2... Ne4 {[%clk 0:03:00.9]} 3. Bf4 {[%clk 0:02:53.6]} 3... c5 {[%clk 0:03:01.9]}
4. f3 {[%clk 0:02:53.8]} 4... Qa5+ {[%clk 0:03:02.5]} 5. c3 {[%clk 0:02:53.2]}
5... Nf6 {[%clk 0:03:03.9]} 6. Nd2 {[%clk 0:02:52.9]} 6... cxd4 {[%clk 0:03:05]}
7. Nc4 {[%clk 0:02:47.3]} 7... Qd8 {[%clk 0:03:05]} 8. Qxd4 {[%clk 0:02:48.1]}
8... d5 {[%clk 0:02:36.9]} 9. Ne5 {[%clk 0:02:41.7]} 9... Nc6 {[%clk 0:02:33.1]}
10. Nxc6 {[%clk 0:02:37.6]} 10... bxc6 {[%clk 0:02:33.8]} 11. e3 {[%clk
0:02:36]} 11... g6 {[%clk 0:02:31.7]} 12. Ne2 {[%clk 0:02:32.1]} 12... Bg7
{[%clk 0:02:32.3]} 13. Be5 {[%clk 0:02:31.5]} 13... O-O {[%clk 0:02:32.9]} 14.
h4 {[%clk 0:02:28.7]} 14... h5 {[%clk 0:02:30.5]} 15. Kf2 {[%clk 0:02:26.8]}
15... Ne8 {[%clk 0:01:54]} 16. c4 {[%clk 0:02:11.2]} 16... Bxe5 {[%clk
0:01:26.6]} 17. Qxe5 {[%clk 0:02:13.1]} 17... dxc4 {[%clk 0:01:28.2]} 18. Nd4
{[%clk 0:02:08.8]} 18... Qd6 {[%clk 0:01:29.2]} 19. Qxd6 {[%clk 0:02:02.8]}
19... Nxd6 {[%clk 0:01:27.2]} 20. Nxc6 {[%clk 0:02:04.2]} 20... Bb7 {[%clk
0:01:00.8]} 21. Nxe7+ {[%clk 0:02:00.6]} 21... Kg7 {[%clk 0:01:01.7]} 22. Rd1
{[%clk 0:02:02.3]} 22... Rfd8 {[%clk 0:01:02.9]} 23. Be2 {[%clk 0:01:48.8]}
23... Rab8 {[%clk 0:01:02.7]} 24. Nd5 {[%clk 0:01:33.9]} 24... Nf5 {[%clk
0:00:15]} 25. Nc3 {[%clk 0:01:20.5]} 25... Ba6 {[%clk 0:00:16.1]} 26. b3 {[%clk
0:01:17.5]} 26... Rdc8 {[%clk 0:00:07.5]} 27. e4 {[%clk 0:01:11.8]} 27... Ne7
{[%clk 0:00:04.4]} 28. bxc4 {[%clk 0:01:09.9]} 28... Bxc4 {[%clk 0:00:04.6]} 29.
Rd2 {[%clk 0:01:07.7]} 29... Bxe2 {[%clk 0:00:04.8]} 30. Nxe2 {[%clk 0:01:09.1]}
30... Nc6 {[%clk 0:00:05.8]} 31. Rc1 {[%clk 0:01:05]} 31... Ne5 {[%clk 0:00:06]}
32. Rxc8 {[%clk 0:01:01.2]} 32... Rxc8 {[%clk 0:00:07.9]} 33. Kg3 {[%clk
0:01:02.7]} 33... Rb8 {[%clk 0:00:08.3]} 34. Nf4 {[%clk 0:00:59.2]} 34... Rb1
{[%clk 0:00:07.8]} 35. Rd5 {[%clk 0:00:53.7]} 35... Nc4 {[%clk 0:00:05.9]} 36.
Rd7 {[%clk 0:00:51.2]} 36... a5 {[%clk 0:00:06]} 37. Ne6+ {[%clk 0:00:49.2]}
37... Kf6 {[%clk 0:00:07]} 38. Ng5 {[%clk 0:00:47.8]} 38... Rb2 {[%clk
0:00:05.6]} 39. Rxf7+ {[%clk 0:00:45.8]} 39... Ke5 {[%clk 0:00:07]} 40. Rd7
{[%clk 0:00:43.3]} 40... Rxa2 {[%clk 0:00:06.9]} 41. f4+ {[%clk 0:00:39.7]} 1-0

[Event "*** Titled Tuesday Blitz"]
[Site "Chess.com"]
[Date "2018.06.05"]
[Round "8"]
[White "blitzcopter"]
[Black "ChrisTool2"]
[Result "0-1"]
[WhiteElo "2098"]
[BlackElo "2266"]
[TimeControl "180+2"]
[EndTime "14:56:16 PDT"]
[Termination "ChrisTool2 won on time"]

1. e4 {[%clk 0:02:53.6]} 1... c5 {[%clk 0:02:22]} 2. Nc3 {[%clk 0:02:52.7]} 2...
d6 {[%clk 0:02:17.6]} 3. g3 {[%clk 0:02:54]} 3... Nc6 {[%clk 0:02:17.2]} 4. Bg2
{[%clk 0:02:54.8]} 4... g6 {[%clk 0:02:18.5]} 5. d3 {[%clk 0:02:56.1]} 5... Bg7
{[%clk 0:02:19.7]} 6. Be3 {[%clk 0:02:57.3]} 6... e6 {[%clk 0:02:14.4]} 7. Qd2
{[%clk 0:02:56.9]} 7... Nge7 {[%clk 0:02:13.8]} 8. Bh6 {[%clk 0:02:56.7]} 8...
O-O {[%clk 0:02:10.1]} 9. h4 {[%clk 0:02:56.7]} 9... f5 {[%clk 0:02:04.7]} 10.
h5 {[%clk 0:02:55.4]} 10... Nd4 {[%clk 0:01:44.3]} 11. O-O-O {[%clk 0:02:53.9]}
11... Bd7 {[%clk 0:01:30.4]} 12. hxg6 {[%clk 0:02:46.4]} 12... hxg6 {[%clk
0:01:28.8]} 13. Bxg7 {[%clk 0:02:23]} 13... Kxg7 {[%clk 0:01:30.7]} 14. Qh6+
{[%clk 0:02:22.6]} 14... Kf7 {[%clk 0:01:30.4]} 15. exf5 {[%clk 0:01:37.2]}
15... Ndxf5 {[%clk 0:01:32.3]} 16. Qg5 {[%clk 0:01:28]} 16... Rh8 {[%clk
0:01:18.2]} 17. Nge2 {[%clk 0:01:16.8]} 17... Bc6 {[%clk 0:01:13.1]} 18. Bxc6
{[%clk 0:01:06.5]} 18... bxc6 {[%clk 0:01:11.8]} 19. Nf4 {[%clk 0:01:02.1]}
19... Qg8 {[%clk 0:00:41.3]} 20. g4 {[%clk 0:00:40.7]} 20... Nd4 {[%clk
0:00:41.9]} 21. Ne4 {[%clk 0:00:31.1]} 21... Qg7 {[%clk 0:00:12.3]} 22. Nxd6+
{[%clk 0:00:28.4]} 22... Kg8 {[%clk 0:00:12.7]} 23. Rxh8+ {[%clk 0:00:22.2]}
23... Kxh8 {[%clk 0:00:14.6]} 24. Qxe7 {[%clk 0:00:15.4]} 24... Ne2+ {[%clk
0:00:11.7]} 25. Kb1 {[%clk 0:00:15.8]} 25... Nxf4 {[%clk 0:00:12.5]} 26. Rh1+
{[%clk 0:00:12.4]} 26... Kg8 {[%clk 0:00:13.5]} 27. Qh4 {[%clk 0:00:09.9]} 27...
Rb8 {[%clk 0:00:12.1]} 28. Kc1 {[%clk 0:00:01.8]} 28... Qxb2+ {[%clk 0:00:09.1]}
29. Kd2 {[%clk 0:00:03.2]} 29... Qb4+ {[%clk 0:00:05.8]} 30. Ke3 {[%clk
0:00:02.9]} 30... Ng2+ {[%clk 0:00:06.4]} 0-1

[Event "*** Titled Tuesday Blitz"]
[Site "Chess.com"]
[Date "2018.06.05"]
[Round "8"]
[White "Manukyan_Artak"]
[Black "TheCount"]
[Result "1-0"]
[WhiteElo "2360"]
[BlackElo "2530"]
[TimeControl "180+2"]
[EndTime "14:56:17 PDT"]
[Termination "Manukyan_Artak won on time"]

1. e4 {[%clk 0:03:01.9]} 1... c5 {[%clk 0:02:50.4]} 2. Nf3 {[%clk 0:03:02.2]}
2... Nc6 {[%clk 0:02:50.5]} 3. c3 {[%clk 0:03:03.1]} 3... Nf6 {[%clk 0:02:51.2]}
4. e5 {[%clk 0:03:04.4]} 4... Nd5 {[%clk 0:02:52.8]} 5. d4 {[%clk 0:03:06.3]}
5... cxd4 {[%clk 0:02:54]} 6. cxd4 {[%clk 0:03:08.2]} 6... d6 {[%clk 0:02:55.1]}
7. Nc3 {[%clk 0:03:09.7]} 7... e6 {[%clk 0:02:56.4]} 8. Bd3 {[%clk 0:03:09.7]}
8... Nxc3 {[%clk 0:02:46.8]} 9. bxc3 {[%clk 0:03:09.5]} 9... dxe5 {[%clk
0:02:48.4]} 10. dxe5 {[%clk 0:03:10.5]} 10... Qa5 {[%clk 0:02:49.2]} 11. O-O
{[%clk 0:03:08.1]} 11... Be7 {[%clk 0:02:44]} 12. Bg5 {[%clk 0:02:46.4]} 12...
Bxg5 {[%clk 0:02:35.6]} 13. Nxg5 {[%clk 0:02:47]} 13... Qxe5 {[%clk 0:02:35.7]}
14. Qh5 {[%clk 0:02:37.5]} 14... Qf6 {[%clk 0:01:07]} 15. Nxh7 {[%clk
0:02:02.4]} 15... Qh6 {[%clk 0:01:06.8]} 16. Qxh6 {[%clk 0:02:01.6]} 16... gxh6
{[%clk 0:01:08.7]} 17. Nf6+ {[%clk 0:02:03.1]} 17... Ke7 {[%clk 0:01:10.3]} 18.
Ne4 {[%clk 0:02:01.1]} 18... f5 {[%clk 0:01:05.9]} 19. Ng3 {[%clk 0:01:57.2]}
19... Ne5 {[%clk 0:00:44.7]} 20. Be2 {[%clk 0:01:56.2]} 20... Bd7 {[%clk
0:00:40.9]} 21. f4 {[%clk 0:01:56.6]} 21... Nf7 {[%clk 0:00:31.9]} 22. Rfe1
{[%clk 0:01:55.4]} 22... Rac8 {[%clk 0:00:29.1]} 23. Bf3 {[%clk 0:01:49.6]}
23... Nd6 {[%clk 0:00:27.1]} 24. Rac1 {[%clk 0:01:45.8]} 24... Rc4 {[%clk
0:00:26.5]} 25. Ne2 {[%clk 0:01:39]} 25... Rhc8 {[%clk 0:00:23.7]} 26. g3 {[%clk
0:01:37.5]} 26... b5 {[%clk 0:00:22.9]} 27. a3 {[%clk 0:01:37.6]} 27... Ra4
{[%clk 0:00:21.3]} 28. Ra1 {[%clk 0:01:38.3]} 28... a5 {[%clk 0:00:12.8]} 29.
Rec1 {[%clk 0:01:36]} 29... Rac4 {[%clk 0:00:13.4]} 30. Kf2 {[%clk 0:01:32.8]}
30... Bc6 {[%clk 0:00:14.4]} 31. Bxc6 {[%clk 0:01:29.3]} 31... R8xc6 {[%clk
0:00:16.3]} 32. Nd4 {[%clk 0:01:30.2]} 32... Ne4+ {[%clk 0:00:17.3]} 33. Kg2
{[%clk 0:01:30]} 33... R6c5 {[%clk 0:00:16.8]} 34. Nb3 {[%clk 0:01:28.6]} 34...
Rc7 {[%clk 0:00:15.2]} 35. Nxa5 {[%clk 0:01:28.2]} 35... Rxc3 {[%clk 0:00:16.5]}
36. Rxc3 {[%clk 0:01:27.9]} 36... Rxc3 {[%clk 0:00:18.4]} 37. Rb1 {[%clk
0:01:26.9]} 37... Rxa3 {[%clk 0:00:18.6]} 38. Rxb5 {[%clk 0:01:28]} 38... Ra2+
{[%clk 0:00:18.3]} 39. Kg1 {[%clk 0:01:27.4]} 39... Nd2 {[%clk 0:00:16.7]} 40.
Nc6+ {[%clk 0:01:28.2]} 40... Kf6 {[%clk 0:00:16]} 41. Ne5 {[%clk 0:01:30.1]}
41... Ne4 {[%clk 0:00:10.6]} 42. Rb7 {[%clk 0:01:30.6]} 42... Ra1+ {[%clk
0:00:10.8]} 43. Kg2 {[%clk 0:01:31.5]} 43... Ra2+ {[%clk 0:00:12.2]} 44. Kh3
{[%clk 0:01:29.7]} 44... Ng5+ {[%clk 0:00:04]} 45. fxg5+ {[%clk 0:01:30.6]}
45... Kxe5 {[%clk 0:00:05.4]} 46. gxh6 {[%clk 0:01:32.2]} 46... Ra8 {[%clk
0:00:05.7]} 47. Kh4 {[%clk 0:01:32.3]} 47... Kf6 {[%clk 0:00:06.8]} 48. Kh5
{[%clk 0:01:31.6]} 48... Rh8 {[%clk 0:00:06.9]} 49. h7 {[%clk 0:01:29]} 49... e5
{[%clk 0:00:08.3]} 50. Kh6 {[%clk 0:01:29.4]} 50... e4 {[%clk 0:00:09.7]} 51. h3
{[%clk 0:01:26.6]} 51... e3 {[%clk 0:00:07.3]} 52. Rb3 {[%clk 0:01:23.2]} 1-0

[Event "*** Titled Tuesday Blitz"]
[Site "Chess.com"]
[Date "2018.06.05"]
[Round "8"]
[White "gkchesstiger"]
[Black "Bryakin_Mikhail"]
[Result "1-0"]
[WhiteElo "2795"]
[BlackElo "2648"]
[TimeControl "180+2"]
[EndTime "14:56:26 PDT"]
[Termination "gkchesstiger won by resignation"]

1. d4 {[%clk 0:03:01.9]} 1... d5 {[%clk 0:03:00.3]} 2. Nf3 {[%clk 0:03:02.3]}
2... Nf6 {[%clk 0:03:00.9]} 3. Bf4 {[%clk 0:03:02.1]} 3... c5 {[%clk 0:03:01]}
4. e3 {[%clk 0:03:03.2]} 4... Nc6 {[%clk 0:03:02.2]} 5. Nbd2 {[%clk 0:03:03.5]}
5... cxd4 {[%clk 0:03:01.2]} 6. exd4 {[%clk 0:03:04]} 6... Bg4 {[%clk
0:03:02.3]} 7. c3 {[%clk 0:03:04.1]} 7... Bxf3 {[%clk 0:02:59.5]} 8. Nxf3 {[%clk
0:03:04.8]} 8... Qb6 {[%clk 0:03:00.5]} 9. Qb3 {[%clk 0:03:04.7]} 9... e6 {[%clk
0:03:00.2]} 10. Bd3 {[%clk 0:03:02.6]} 10... Be7 {[%clk 0:02:57.1]} 11. O-O
{[%clk 0:03:03]} 11... O-O {[%clk 0:02:58.2]} 12. Rfe1 {[%clk 0:03:00.9]} 12...
Rfc8 {[%clk 0:02:53.7]} 13. h4 {[%clk 0:02:57.7]} 13... Na5 {[%clk 0:02:49.7]}
14. Qc2 {[%clk 0:02:57.6]} 14... Nc4 {[%clk 0:02:45.2]} 15. Re2 {[%clk
0:02:57.6]} 15... a5 {[%clk 0:02:38.2]} 16. a4 {[%clk 0:02:56]} 16... h6 {[%clk
0:02:32.1]} 17. Rf1 {[%clk 0:02:53.9]} 17... Bd6 {[%clk 0:02:21.3]} 18. Bc1
{[%clk 0:02:53.8]} 18... Bc7 {[%clk 0:02:16.6]} 19. g3 {[%clk 0:02:53.7]} 19...
Nd6 {[%clk 0:02:15.3]} 20. Kg2 {[%clk 0:02:44.7]} 20... Nde4 {[%clk 0:02:15.8]}
21. Ne5 {[%clk 0:02:44.1]} 21... Nd6 {[%clk 0:01:37.5]} 22. f3 {[%clk
0:02:43.7]} 22... Nc4 {[%clk 0:01:19]} 23. Bxc4 {[%clk 0:02:19.6]} 23... dxc4
{[%clk 0:01:20.9]} 24. Nxc4 {[%clk 0:02:20.4]} 24... Qc6 {[%clk 0:01:22]} 25.
Ne5 {[%clk 0:02:20.1]} 25... Bxe5 {[%clk 0:01:21.6]} 26. Rxe5 {[%clk 0:02:19.8]}
26... Rab8 {[%clk 0:01:13.9]} 27. Rxa5 {[%clk 0:02:16.2]} 27... Nd5 {[%clk
0:01:12]} 28. Rc5 {[%clk 0:02:14.7]} 28... Qa6 {[%clk 0:01:09.3]} 29. Rxc8+
{[%clk 0:02:11.1]} 29... Rxc8 {[%clk 0:01:11.2]} 30. Rf2 {[%clk 0:02:10.8]}
30... Qc4 {[%clk 0:01:08.3]} 31. Qd1 {[%clk 0:02:07.9]} 31... Ra8 {[%clk
0:01:06]} 32. h5 {[%clk 0:02:00.1]} 32... Qxa4 {[%clk 0:01:06.1]} 33. Qxa4
{[%clk 0:02:01]} 33... Rxa4 {[%clk 0:01:08]} 34. g4 {[%clk 0:02:01.2]} 34... b5
{[%clk 0:01:05.4]} 35. Rf1 {[%clk 0:01:56.8]} 35... Ra2 {[%clk 0:01:01.4]} 36.
Kg3 {[%clk 0:01:56.8]} 36... Kf8 {[%clk 0:01:00]} 37. Re1 {[%clk 0:01:54.5]}
37... Ke7 {[%clk 0:00:57.6]} 38. f4 {[%clk 0:01:54.4]} 38... Kd7 {[%clk
0:00:49.9]} 39. f5 {[%clk 0:01:55.3]} 39... Ra1 {[%clk 0:00:33.4]} 40. fxe6+
{[%clk 0:01:54.3]} 40... fxe6 {[%clk 0:00:33.3]} 41. Kf3 {[%clk 0:01:53.7]}
41... Nf6 {[%clk 0:00:28]} 42. Bd2 {[%clk 0:01:44.3]} 42... Ra2 {[%clk
0:00:28.7]} 43. Rb1 {[%clk 0:01:45.3]} 43... Nd5 {[%clk 0:00:28.4]} 44. g5
{[%clk 0:01:41.1]} 44... hxg5 {[%clk 0:00:28.3]} 45. Bxg5 {[%clk 0:01:42.3]}
45... Nb6 {[%clk 0:00:26.4]} 46. Bf4 {[%clk 0:01:41.6]} 46... Ke7 {[%clk
0:00:23.6]} 47. Rg1 {[%clk 0:01:38.1]} 47... Rxb2 {[%clk 0:00:17.2]} 48. Rxg7+
{[%clk 0:01:37.9]} 48... Kf8 {[%clk 0:00:18.7]} 49. h6 {[%clk 0:01:35.5]} 49...
Nc4 {[%clk 0:00:17.3]} 50. Bg5 {[%clk 0:01:31.7]} 50... Rh2 {[%clk 0:00:16.2]}
51. Be7+ {[%clk 0:01:32.5]} 51... Ke8 {[%clk 0:00:17.2]} 52. h7 {[%clk
0:01:33.8]} 52... Nd2+ {[%clk 0:00:15.1]} 53. Kf4 {[%clk 0:01:29.9]} 53... Kd7
{[%clk 0:00:07.5]} 54. Bh4+ {[%clk 0:01:29]} 1-0